fUST/lending_fUST_20260116
["ID","MTS","AMOUNT","RATE_DAILY","PERIOD"]
[402053429,1768499439196,-1000.0,0.00015122,2]
[402053430,1768499439205,-244.0,0.00015122,2]
[402053431,1768499439215,-1367.0,0.00015554,2]
[402053432,1768499439224,-2147.0,0.00015554,2]
[402053433,1768499439234,-629.0,0.00015554,2]
[402053434,1768499439243,-715.0,0.00015554,2]
[402053435,1768499439253,-321.86465226,0.00015925,2]
[402053436,1768499439262,-1000.0,0.00016634,2]
[402053437,1768499439272,-492.0,0.00016634,2]
[402053438,1768499439283,-310.7,0.00017291,2]
[402053439,1768499439293,-445.202766,0.00017617,2]
[402053440,1768499439303,-151.0,0.00017617,2]
[402053441,1768499439312,-162.380719,0.00017617,2]
[402053442,1768499439323,-1000.0,0.00017617,2]
[402053443,1768499439333,-151.0,0.00017617,2]
[402053445,1768499439343,-1000.0,0.00017617,2]
[402053447,1768499439352,-151.0,0.00017617,2]
[402053448,1768499439362,-1000.0,0.00017617,2]
[402053449,1768499439372,-151.0,0.00017617,2]
[402053450,1768499439382,-1000.0,0.00017617,2]
[402053451,1768499439391,-151.0,0.00017617,2]
[402053452,1768499439401,-250.0,0.00017617,2]
[402053453,1768499439410,-250.0,0.00017617,2]
[402053454,1768499439419,-1000.0,0.00017617,2]
[402053455,1768499439429,-151.0,0.00017617,2]
[402053456,1768499439439,-250.0,0.00017617,2]
[402053457,1768499439448,-250.0,0.00017617,2]
[402053458,1768499439457,-1000.0,0.00017617,2]
[402053459,1768499439467,-151.0,0.00017617,2]
[402053460,1768499439476,-250.0,0.00017617,2]
[402053461,1768499439486,-151.0,0.00017617,2]
[402053462,1768499439495,-250.0,0.00017617,2]
[402053463,1768499439504,-1000.0,0.00017617,2]
[402053464,1768499439513,-151.0,0.00017617,2]
[402053465,1768499439523,-250.0,0.00017617,2]
[402053466,1768499439532,-151.0,0.00017617,2]
[402053467,1768499439541,-1000.0,0.00017617,2]
[402053468,1768499439550,-250.0,0.00017617,2]
[402053469,1768499439559,-151.0,0.00017617,2]
[402053470,1768499439568,-250.0,0.00017617,2]
[402053471,1768499439582,-151.0,0.00017617,2]
[402053472,1768499439593,-1000.0,0.00017617,2]
[402053473,1768499439602,-250.0,0.00017617,2]
[402053474,1768499439612,-151.0,0.00017617,2]
[402053475,1768499439622,-250.0,0.00017617,2]
[402053476,1768499439632,-1000.0,0.00017617,2]
[402053477,1768499439642,-273.53456012,0.00017617,2]
[402053478,1768499439652,-151.0,0.00017617,2]
[402053479,1768499439662,-151.0,0.00017617,2]
[402053480,1768499439672,-250.0,0.00017617,2]
[402053481,1768499439682,-1000.0,0.00017617,2]
[402053482,1768499439691,-151.0,0.00017617,2]
[402053483,1768499439700,-250.0,0.00017617,2]
[402053484,1768499439709,-242.59349996,0.00017617,2]
[402053485,1768499439719,-1000.0,0.00017617,2]
[402053486,1768499439728,-151.0,0.00017617,2]
[402053487,1768499439738,-323.29083411,0.00017617,2]
[402053488,1768499439749,-1000.0,0.00017617,2]
[402053489,1768499439764,-151.0,0.00017617,2]
[402053490,1768499439773,-1000.0,0.00017617,2]
[402053491,1768499439783,-198.1626915,0.00017617,2]
[402053492,1768499439793,-1000.0,0.00017617,2]
[402053493,1768499439803,-1000.0,0.00017617,2]
[402053494,1768499439812,-1000.0,0.00017617,2]
[402053495,1768499439822,-1158.25313548,0.00017617,2]
[402053496,1768499439833,-1000.0,0.00017617,2]
[402053497,1768499439842,-250.0,0.00017617,2]
[402053498,1768499439851,-162.380719,0.00017617,2]
[402053500,1768499439860,-250.0,0.00017617,2]
[402053502,1768499439869,-151.0,0.00017617,2]
[402053503,1768499439879,-168.3888056,0.00017617,2]
[402053504,1768499439888,-250.0,0.00017617,2]
[402053505,1768499439900,-174.61919141,0.00017617,2]
[402053506,1768499439910,-250.0,0.00017617,2]
[402053507,1768499439919,-181.08010149,0.00017617,2]
[402053509,1768499439929,-250.0,0.00017617,2]
[402053511,1768499439939,-187.78006525,0.00017617,2]
[402053512,1768499439949,-250.0,0.00017617,2]
[402053513,1768499439958,-194.72792766,0.00017617,2]
[402053514,1768499439968,-380.99585983,0.00017617,2]
[402053515,1768499439977,-201.93286099,0.00017617,2]
[402053516,1768499439987,-209.40437684,0.00017617,2]
[402053517,1768499439997,-217.15233878,0.00017617,2]
[402053518,1768499440007,-225.18697532,0.00017617,2]
[402053519,1768499440017,-233.51889341,0.00017617,2]
[402053520,1768499440027,-242.15909246,0.00017617,2]
[402053521,1768499440037,-251.11897888,0.00017617,2]
[402053522,1768499440046,-260.4103811,0.00017617,2]
[402053523,1768499440055,-270.0455652,0.00017617,2]
[402053524,1768499440065,-280.03725112,0.00017617,2]
[402053525,1768499440075,-290.39862941,0.00017617,2]
[402053526,1768499440085,-301.1433787,0.00017617,2]
[402053527,1768499440098,-310.7,0.00017914,2]
[402053528,1768499440107,-359.48519603,0.00017925,2]
[402053529,1768499440117,-373.71382469,0.00018165,2]
[402053530,1768499440126,-1000.0,0.00018298,2]
[402053531,1768499440136,-791.0,0.00018298,2]
[402053532,1768499440145,-180.1278908,0.00018442,2]
[402053533,1768499440155,-310.7,0.00018537,2]
[402053534,1768499440164,-1367.0,0.00018554,2]
[402053535,1768499440173,-2147.0,0.00018554,2]
[402053536,1768499440182,-629.0,0.00018554,2]
[402053537,1768499440191,-715.0,0.00018554,2]
[402053538,1768499440200,-303.10001603,0.000189,2]
[402053539,1768499440210,-303.10001603,0.000189,2]
[402053540,1768499440220,-160.0,0.00018909,2]
[402053541,1768499440229,-1041.66666667,0.00018909,2]
[402053542,1768499440240,-169.11441979,0.00018986,2]
[402053543,1768499440250,-303.10001603,0.00019089,2]
[402053544,1768499440259,-303.10001603,0.00019089,2]
[402053545,1768499440270,-310.7,0.00019159,2]
[402053546,1768499440280,-845.3974,0.00019178,2]
[402053547,1768499440290,-374.37,0.00019178,2]
[402053548,1768499440300,-1268.0962,0.00019178,2]
[402053549,1768499440310,-1166.44,0.00019178,2]
[402053550,1768499440320,-1166.44,0.00019178,2]
[402053551,1768499440330,-1166.44,0.00019178,2]
[402053552,1768499440339,-1166.44,0.00019178,2]
[402053553,1768499440349,-1166.44,0.00019178,2]
[402053554,1768499440358,-1166.44,0.00019178,2]
[402053555,1768499440368,-1166.44,0.00019178,2]
[402053556,1768499440377,-1166.44,0.00019178,2]
[402053557,1768499440386,-1166.44,0.00019178,2]
[402053558,1768499440396,-1166.44,0.00019178,2]
[402053559,1768499440405,-1166.44,0.00019178,2]
[402053560,1768499440415,-1166.44,0.00019178,2]
[402053561,1768499440426,-1166.44,0.00019178,2]
[402053562,1768499440435,-1166.44,0.00019178,2]
[402053563,1768499440444,-1166.44,0.00019178,2]
[402053564,1768499440454,-1166.44,0.00019178,2]
[402053565,1768499440463,-1166.44,0.00019178,2]
[402053566,1768499440472,-1166.44,0.00019178,2]
[402053567,1768499440481,-1166.44,0.00019178,2]
[402053568,1768499440491,-1166.44,0.00019178,2]
[402053569,1768499440500,-1166.44,0.00019178,2]
[402053570,1768499440798,-1166.44,0.00019178,2]
[402053571,1768499440808,-1166.44,0.00019178,2]
[402053572,1768499440818,-1166.46299172,0.00019178,2]
[402053573,1768499440828,-5000.0,0.00019178,2]
[402053574,1768499440838,-5000.0,0.00019178,2]
[402053575,1768499440847,-16073.21,0.000192,2]
[402053576,1768499440857,-157.97,0.000192,2]
[402053577,1768499440867,-2925.08,0.000192,2]
[402053578,1768499440875,-159.17,0.000192,2]
[402053579,1768499440886,-303.10001603,0.00019278,2]
[402053580,1768499440895,-303.10001603,0.00019278,2]
[402053581,1768499440905,-303.10001603,0.00019467,2]
[402053582,1768499440913,-303.10001603,0.00019467,2]
[402053583,1768499440922,-845.3974,0.00019589,3]
[402053584,1768499440931,-1231.9038,0.00019589,3]
[402053585,1768499440940,-303.10001603,0.00019656,2]
[402053586,1768499440949,-303.10001603,0.00019656,2]
[402053587,1768499440959,-250.0,0.00019726,2]
[402053588,1768499440968,-310.7,0.00019782,2]
[402053589,1768499440978,-604.67437126,0.00019845,4]
[402053590,1768499440987,-303.10001603,0.00019845,4]
[402053591,1768499440997,-397.1057398,0.00019925,2]
[402053592,1768499441014,-3000.0,0.00019999,7]
[402053593,1768499441027,-183.24618593,0.0002,2]
[402053594,1768499441037,-1000.0,0.00020128,2]
[402053595,1768499441048,-1000.0,0.00020128,2]
[402053596,1768499441057,-159.17,0.000202,2]
[402053597,1768499441067,-350.0,0.00020274,2]
[402053598,1768499441078,-157.97,0.000203,2]
[402053599,1768499441087,-378.92751098,0.000203,2]
[402053618,1768499443010,-417.0,0.00015554,2]
[402053620,1768499443020,-198.527,0.00015554,2]
[402053622,1768499443029,-417.0,0.00018554,2]
[402053623,1768499443039,-178.0,0.00018554,2]
[402053625,1768499443049,-621.02177192,0.000203,2]
[402053752,1768499445936,-1925.1307171,0.000203,2]
[402053754,1768499445945,-310.7,0.00020405,2]
[402053756,1768499445955,-7464.55346265,0.000205,2]
[402054503,1768499841839,151.70561856,0.00022714,120]
[402054710,1768500416419,5000.0,9.451e-05,2]
[402054809,1768500631705,5000.0,9.451e-05,2]
[402054843,1768500638005,-172.6364953,9.702e-05,2]
[402054844,1768500638015,-167.423,9.823e-05,2]
[402054846,1768500638024,-67.8305047,9.824e-05,2]
[402055027,1768500640042,-432.1694953,9.824e-05,2]
[402055029,1768500640051,-487.18290386,9.824e-05,2]
[402055334,1768500642984,-12.81709614,9.824e-05,2]
[402055336,1768500642993,-500.0,9.824e-05,2]
[402055338,1768500643002,-153.80843112,9.922e-05,2]
[402055340,1768500643012,-2852.16735446,9.923e-05,2]
[402055342,1768500643022,-6097.03692679,9.923e-05,2]
[402055746,1768500646943,-101368.34100909,9.923e-05,2]
[402058654,1768500705223,200.0,0.00011,20]
[402058693,1768500936458,-300.0,9.726e-05,2]
[402058694,1768500951176,-300.0,9.726e-05,2]
[402058695,1768500952351,-300.0,9.726e-05,2]
[402058696,1768500953483,-300.0,9.726e-05,2]
[402058821,1768501232570,5000.0,9.451e-05,2]
[402058823,1768501254885,5000.0,9.451e-05,2]
[402058828,1768501277622,5000.0,9.451e-05,2]
[402058841,1768501301029,5000.0,9.451e-05,2]
[402058849,1768501323694,5000.0,9.451e-05,2]
[402058857,1768501346386,5000.0,9.451e-05,2]
[402058862,1768501368671,5000.0,9.451e-05,2]
[402058863,1768501390951,5000.0,9.451e-05,2]
[402058875,1768501413214,5000.0,9.451e-05,2]
[402058898,1768501435520,5000.0,9.451e-05,2]
[402058899,1768501457988,5000.0,9.451e-05,2]
[402058900,1768501480249,5000.0,9.451e-05,2]
[402058903,1768501502940,5000.0,9.451e-05,2]
[402058905,1768501525717,5000.0,9.451e-05,2]
[402058906,1768501531827,155.0,3.8e-06,2]
[402058907,1768501548177,5000.0,9.451e-05,2]
[402058912,1768501570968,5000.0,9.451e-05,2]
[402058927,1768501593849,5000.0,9.451e-05,2]
[402058944,1768501616001,5000.0,9.451e-05,2]
[402058949,1768501638947,5000.0,9.451e-05,2]
[402058962,1768501661249,5000.0,9.451e-05,2]
[402058964,1768501684805,5000.0,9.451e-05,2]
[402058966,1768501708183,5000.0,9.451e-05,2]
[402058973,1768501730895,5000.0,9.451e-05,2]
[402058986,1768501753536,5000.0,9.451e-05,2]
[402058998,1768501776788,5000.0,9.451e-05,2]
[402059006,1768501800908,5000.0,9.451e-05,2]
[402059227,1768501840297,-113.74940344,9.563e-05,2]
[402059327,1768501843227,-1927.6261955,9.563e-05,2]
[402061705,1768501905951,200.0,0.00011,20]
[402061749,1768502015442,5000.0,9.451e-05,2]
[402061750,1768502037627,5000.0,9.451e-05,2]
[402061751,1768502060417,5000.0,9.451e-05,2]
[402061752,1768502082764,5000.0,9.451e-05,2]
[402061753,1768502105639,5000.0,9.451e-05,2]
[402061754,1768502128386,5000.0,9.451e-05,2]
[402061757,1768502151285,5000.0,9.451e-05,2]
[402061758,1768502173371,5000.0,9.451e-05,2]
[402061759,1768502195628,2552.43359779,9.451e-05,2]
[402061823,1768502445001,200.0,0.00011,20]
[402061824,1768502447775,179.55612335,9.451e-05,2]
[402061837,1768502525503,-5000.0,9.619e-05,2]
[402061838,1768502525535,-556.0,9.716e-05,2]
[402061839,1768502525563,-169.1837654,9.716e-05,2]
[402061840,1768502525593,-158.69,9.746e-05,2]
[402061841,1768502525623,-500.0,9.822e-05,2]
[402061842,1768502525654,-500.0,9.822e-05,2]
[402061843,1768502525686,-500.0,9.822e-05,2]
[402061844,1768502525717,-500.0,9.822e-05,2]
[402061845,1768502525750,-500.0,9.822e-05,2]
[402061846,1768502525780,-500.0,9.822e-05,2]
[402061847,1768502525810,-500.0,9.822e-05,2]
[402061848,1768502525839,-320.27049295,9.822e-05,2]
[402061849,1768502525868,-91.7114833,9.822e-05,2]
[402061897,1768502717291,-500.0,9.721e-05,2]
[402061898,1768502717326,-500.0,9.721e-05,2]
[402061899,1768502717359,-500.0,9.721e-05,2]
[402061901,1768502717394,-290.20767927,9.721e-05,2]
[402061902,1768502717424,-242.93502519,9.721e-05,2]
[402062022,1768502928091,5000.0,9.451e-05,2]
[402062083,1768503032156,-20.40876655,9.625e-05,2]
[402062329,1768503040891,-1071.83150878,9.625e-05,2]
[402062496,1768503042468,-368.56045753,9.625e-05,2]
[402062498,1768503042479,-833.81414288,9.625e-05,2]
[402062585,1768503043326,-1135.04524533,9.625e-05,2]
[402062600,1768503043454,-1570.33987893,9.625e-05,2]
[402062602,1768503043464,-165.80009009,9.673e-05,2]
[402062604,1768503043473,-11114.00566089,9.722e-05,2]
[402062606,1768503043484,-7584.83004401,9.722e-05,2]
[402062609,1768503043495,-672.80841133,9.722e-05,2]
[402062611,1768503043508,-5609.25,9.722e-05,2]
[402062614,1768503043519,-256.2,9.722e-05,2]
[402062616,1768503043530,-1141.56340796,9.722e-05,2]
[402062619,1768503043542,-16213.92276521,9.722e-05,2]
[402062622,1768503043553,-7076.86593956,9.722e-05,2]
[402062650,1768503046357,-3359.46617756,9.722e-05,2]
[402062651,1768503046368,-253.7425319,9.722e-05,2]
[402066159,1768503352018,3379.7,9.451e-05,2]
[402066171,1768503430467,15413.68626212,9.624e-05,30]
[402066172,1768503430489,46189.06101122,9.624e-05,30]
[402066177,1768503446962,5000.0,9.451e-05,2]
[402066246,1768503662965,5000.0,9.451e-05,2]
[402066248,1768503685228,4620.44387665,9.451e-05,2]
[402066300,1768503924756,154.66,8.711e-05,2]
[402066301,1768503925156,231.98,9.107e-05,2]
[402066311,1768504003093,217.22,9.111e-05,2]
[402066330,1768504189209,2000.0,0.00027397,120]
[402066347,1768504232319,-162.48408829,9.551e-05,2]
[402066348,1768504232329,-189.52731547,9.622e-05,2]
[402066349,1768504232350,-442.48540869,9.622e-05,2]
[402066377,1768504238406,-207.39939148,9.621e-05,2]
[402066379,1768504238415,-500.0,9.621e-05,2]
[402066381,1768504238427,-500.0,9.621e-05,2]
[402066383,1768504238436,-500.0,9.621e-05,2]
[402066385,1768504238446,-370.15002352,9.621e-05,2]
[402066387,1768504238457,-129.84997648,9.621e-05,2]
[402066389,1768504238466,-500.0,9.621e-05,2]
[402066391,1768504238476,-500.0,9.621e-05,2]
[402066393,1768504238487,-344.41046759,9.621e-05,2]
[402066395,1768504238496,-500.0,9.621e-05,2]
[402066398,1768504238507,-500.0,9.621e-05,2]
[402066400,1768504238517,-500.0,9.621e-05,2]
[402066401,1768504238526,-500.0,9.621e-05,2]
[402066403,1768504238537,-500.0,9.621e-05,2]
[402066405,1768504238547,-500.0,9.621e-05,2]
[402066407,1768504238556,-500.0,9.621e-05,2]
[402066409,1768504238566,-271.13882578,9.621e-05,2]
[402066412,1768504238576,-14861.6012685,9.622e-05,2]
[402066657,1768504240601,-345.3,9.621e-05,2]
[402066659,1768504240611,-789.93247575,9.622e-05,2]
[402066984,1768504244110,-2913.47731066,9.622e-05,2]
[402066986,1768504244121,-3428.38958479,9.622e-05,2]
[402066989,1768504244132,-2779.06493124,9.622e-05,2]
[402066991,1768504244145,-9509.37058494,9.622e-05,2]
[402066993,1768504244156,-414.09177835,9.622e-05,2]
[402066995,1768504244169,-7127.65573944,9.622e-05,2]
[402066997,1768504244181,-447.86,9.622e-05,2]
[402067232,1768504246405,-23769.41992445,9.622e-05,2]
[402068985,1768504318367,3547.04647078,9.191e-05,2]
[402068986,1768504530077,3257.21300632,9.17e-05,2]
[402069145,1768504713083,800.0,9.412e-05,2]
[402069152,1768504829340,1071.83150878,9.451e-05,2]
[402069156,1768504919030,2523.85968272,9.164e-05,2]
[402069196,1768505242631,188.36602007,0.00022463,120]
[402069238,1768505432447,-300.0,9.52e-05,2]
[402069239,1768505432457,-300.0,9.52e-05,2]
[402069240,1768505432467,-300.0,9.52e-05,2]
[402069241,1768505432477,-1200.0,9.52e-05,2]
[402069242,1768505432487,-307.90431398,9.52e-05,2]
[402069243,1768505432497,-500.0,9.52e-05,2]
[402069244,1768505432507,-368.73188714,9.52e-05,2]
[402069245,1768505432516,-371.7,9.52e-05,2]
[402069246,1768505432526,-500.0,9.52e-05,2]
[402069247,1768505432535,-500.0,9.52e-05,2]
[402069248,1768505432545,-165.23298285,9.52e-05,2]
[402069249,1768505432554,-263.86242677,9.521e-05,2]
[402069251,1768505432563,-15487.4082269,9.521e-05,2]
[402069258,1768505438601,-6622.65307403,9.521e-05,2]
[402069261,1768505438611,-20633.76582186,9.522e-05,2]
[402069263,1768505438623,-27973.81055204,9.522e-05,2]
[402069265,1768505438656,-500.0,9.522e-05,2]
[402069267,1768505438667,-2152.23329974,9.522e-05,2]
[402069270,1768505438679,-6266.55930988,9.522e-05,2]
[402069292,1768505438935,-2012.70208524,9.522e-05,2]
[402069490,1768505443678,-572.66,9.522e-05,2]
[402069491,1768505443689,-5031.45061528,9.522e-05,2]
[402069492,1768505443784,-3290.00000001,9.522e-05,2]
[402069502,1768505447186,-9577.04777855,9.522e-05,2]
[402069503,1768505447231,-1981.82924777,9.522e-05,2]
[402069504,1768505454312,580.0,9.09e-05,2]
[402069505,1768505484529,2261.43,0.00027397,120]
[402069516,1768505649825,78816.39740785,9.422e-05,2]
[402069517,1768505649858,921183.60259215,9.422e-05,2]
[402069589,1768505799883,10000.01,9.422e-05,2]
[402069590,1768505799910,10000.01,9.422e-05,2]
[402069591,1768505799936,10000.01,9.422e-05,2]
[402069592,1768505799967,969999.97,9.422e-05,2]
[402069593,1768505812366,4692.2057684,9.45e-05,2]
[402069599,1768505820810,5000.0,9.45e-05,2]
[402069600,1768505828827,5000.0,9.45e-05,2]
[402069601,1768505843925,5000.0,9.45e-05,2]
[402069602,1768505851696,5000.0,9.45e-05,2]
[402069603,1768505874049,5000.0,9.45e-05,2]
[402069607,1768505896783,5000.0,9.45e-05,2]
[402069621,1768506008221,3602.498788,0.000134,60]
[402069622,1768506008246,1397.501212,0.000134,60]
[402069682,1768506144006,2302.498788,0.000134,60]
[402069683,1768506144032,2697.501212,0.000134,60]
[402069685,1768506166348,5000.0,0.00027397,120]
[402069694,1768506291868,1472.0,0.00027397,120]
[402069699,1768506364789,155.0,3.8e-06,2]
[402069755,1768506631609,-1044.19400979,9.522e-05,2]
[402069756,1768506631619,-161.9283232,9.522e-05,2]
[402069757,1768506631629,-197.67788553,9.625e-05,2]
[402069758,1768506631639,-789.92083059,9.625e-05,2]
[402069759,1768506631648,-2818.92181632,9.665e-05,2]
[402069760,1768506631658,-1000.0,9.722e-05,2]
[402069761,1768506631668,-642.80555539,9.722e-05,2]
[402069762,1768506631677,-208.93,9.803e-05,2]
[402069763,1768506631687,-207.63687635,9.984e-05,2]
[402069764,1768506631697,-184.70369874,9.984e-05,2]
[402069765,1768506631707,-2363.19126158,9.985e-05,2]
[402069766,1768506631725,-1400.08699331,9.985e-05,2]
[402069767,1768506631736,-890.18,9.985e-05,2]
[402069768,1768506631750,-67858.44155322,9.985e-05,2]
[402069769,1768506631761,-5460.22771338,9.985e-05,2]
[402069856,1768506637737,-75157.03998901,9.985e-05,2]
[402069876,1768506637914,-853.015828,9.985e-05,2]
[402069995,1768506642918,-3595.00000042,9.985e-05,2]
[402069996,1768506642966,-2003.2858229,9.985e-05,2]
[402070039,1768506645847,-499.80798747,9.985e-05,2]
[402070042,1768506645869,-14393.74899774,9.985e-05,2]
[402070104,1768506646451,-681.81976638,9.985e-05,2]
[402070273,1768507119585,200.95,9.387e-05,2]
[402070299,1768507193511,193.28,9.382e-05,2]
[402070301,1768507204108,100000.0,0.00027397,120]
[402070303,1768507271988,185.9,9.395e-05,2]
[402070433,1768507792122,170.24,9.321e-05,2]
[402070469,1768507831709,-300.0,9.588e-05,2]
[402070470,1768507831718,-300.0,9.588e-05,2]
[402070471,1768507831728,-300.0,9.588e-05,2]
[402070472,1768507831738,-300.0,9.588e-05,2]
[402070473,1768507831747,-785.0,9.588e-05,2]
[402070474,1768507831756,-554.0,9.588e-05,2]
[402070475,1768507831766,-158.68975673,9.589e-05,2]
[402070476,1768507831775,-153.0,9.589e-05,2]
[402070477,1768507831784,-153.0,9.589e-05,2]
[402070478,1768507831794,-153.0,9.589e-05,2]
[402070479,1768507831803,-153.0,9.589e-05,2]
[402070480,1768507831812,-153.0,9.589e-05,2]
[402070481,1768507831822,-153.0,9.589e-05,2]
[402070482,1768507831832,-153.0,9.589e-05,2]
[402070483,1768507831842,-24.77976616,9.589e-05,2]
[402070484,1768507831865,-273.95848863,9.589e-05,2]
[402070485,1768507831874,-153.0,9.589e-05,2]
[402070486,1768507831884,-712.08940633,9.589e-05,2]
[402070487,1768507831895,-49287.91059367,9.589e-05,2]
[402070488,1768507831904,-500.0,9.709e-05,2]
[402070489,1768507831916,-500.0,9.709e-05,2]
[402070490,1768507831926,-500.0,9.709e-05,2]
[402070491,1768507831935,-500.0,9.709e-05,2]
[402070492,1768507831945,-500.0,9.709e-05,2]
[402070493,1768507831954,-500.0,9.709e-05,2]
[402070494,1768507831964,-500.0,9.709e-05,2]
[402070495,1768507831972,-255.36,9.744e-05,2]
[402070496,1768507831982,-1094.9599349,9.788e-05,2]
[402070497,1768507831992,-15892.4658961,9.788e-05,2]
[402070498,1768507832002,-202.57,9.799e-05,2]
[402070499,1768507832011,-745.29,9.8e-05,2]
[402070500,1768507832022,-500.0,9.846e-05,2]
[402070501,1768507832032,-602.19565449,9.846e-05,2]
[402070502,1768507832041,-500.0,9.846e-05,2]
[402070503,1768507832050,-500.0,9.846e-05,2]
[402070504,1768507832059,-500.0,9.846e-05,2]
[402070505,1768507832069,-500.0,9.846e-05,2]
[402070506,1768507832081,-500.0,9.846e-05,2]
[402070507,1768507832090,-181.32801356,9.878e-05,2]
[402070508,1768507832103,-334.53721653,9.883e-05,2]
[402070509,1768507832112,-500.0,9.883e-05,2]
[402070510,1768507832122,-234.13514618,9.883e-05,2]
[402070511,1768507832132,-154.65705267,9.883e-05,2]
[402070512,1768507832141,-500.0,9.883e-05,2]
[402070513,1768507832153,-500.0,9.883e-05,2]
[402070514,1768507832164,-500.0,9.883e-05,2]
[402070515,1768507832175,-500.0,9.883e-05,2]
[402070516,1768507832185,-500.0,9.883e-05,2]
[402070517,1768507832194,-500.0,9.883e-05,2]
[402070518,1768507832203,-500.0,9.883e-05,2]
[402070519,1768507832212,-178.24702148,9.883e-05,2]
[402070520,1768507832221,-500.0,9.883e-05,2]
[402070521,1768507832230,-500.0,9.883e-05,2]
[402070522,1768507832239,-500.0,9.883e-05,2]
[402070523,1768507832248,-255.25225054,9.883e-05,2]
[402070524,1768507832257,-500.0,9.883e-05,2]
[402070525,1768507832266,-500.0,9.883e-05,2]
[402070526,1768507832276,-17433.0166992,9.884e-05,2]
[402070527,1768507832287,-11883.62859141,9.884e-05,2]
[402070528,1768507832298,-407.03070456,9.884e-05,2]
[402070529,1768507832309,-9619.91025736,9.884e-05,2]
[402070530,1768507832321,-1000.0,9.884e-05,2]
[402071006,1768507842976,-500.0,9.883e-05,2]
[402071007,1768507842986,-60.0,9.883e-05,2]
[402071008,1768507842998,-440.0,9.883e-05,2]
[402071009,1768507843007,-234.13514618,9.883e-05,2]
[402071010,1768507843016,-2872.48986888,9.884e-05,2]
[402071280,1768507845963,-1528.81137582,9.884e-05,2]
[402071283,1768507845979,-9938.58666667,9.884e-05,2]
[402073047,1768507867456,159.41,9.382e-05,2]
[402074586,1768507945031,155.35,6.982e-05,2]
[402074587,1768507945460,233.03,7.299e-05,2]
[402074588,1768507945832,310.7,7.616e-05,2]
[402074589,1768507946224,388.38,7.934e-05,2]
[402074590,1768507946621,466.05,8.251e-05,2]
[402074591,1768507947543,543.73,8.568e-05,2]
[402074592,1768507947953,621.41,8.886e-05,2]
[402074593,1768507948349,699.08,9.203e-05,2]
[402074603,1768508020010,194.49,6.83e-05,2]
[402074604,1768508020430,243.11,7.115e-05,2]
[402074605,1768508020846,291.73,7.399e-05,2]
[402074606,1768508021292,340.35,7.684e-05,2]
[402074607,1768508021638,388.97,7.969e-05,2]
[402074608,1768508022157,437.6,8.253e-05,2]
[402074609,1768508023085,486.22,8.538e-05,2]
[402074616,1768508073449,800.0,9.419e-05,2]
[402074617,1768508092872,164.7,8.252e-05,2]
[402074631,1768508218797,1327.0,0.00027397,120]
[402075028,1768509031914,-553.0,9.53e-05,2]
[402075030,1768509031925,-407.89,9.53e-05,2]
[402075032,1768509031935,-155.5159616,9.53e-05,2]
[402075034,1768509031945,-300.0,9.603e-05,2]
[402075035,1768509031954,-300.0,9.603e-05,2]
[402075037,1768509031964,-415.0,9.603e-05,2]
[402075038,1768509031974,-186.47189128,9.603e-05,2]
[402075039,1768509031984,-500.0,9.604e-05,2]
[402075041,1768509031994,-286.46243099,9.604e-05,2]
[402075042,1768509032004,-500.0,9.604e-05,2]
[402075044,1768509032014,-500.0,9.604e-05,2]
[402075046,1768509032023,-500.0,9.604e-05,2]
[402075047,1768509032033,-500.0,9.604e-05,2]
[402075049,1768509032042,-500.0,9.604e-05,2]
[402075050,1768509032052,-200.0,9.604e-05,2]
[402075051,1768509032061,-500.0,9.604e-05,2]
[402075052,1768509032070,-500.0,9.604e-05,2]
[402075053,1768509032080,-500.0,9.604e-05,2]
[402075054,1768509032090,-500.0,9.604e-05,2]
[402075055,1768509032100,-500.0,9.604e-05,2]
[402075056,1768509032110,-50000.0,9.604e-05,2]
[402075057,1768509032119,-445.202766,9.682e-05,2]